fUSD/lending_fUSD_20260218
["ID","MTS","AMOUNT","RATE_DAILY","PERIOD"]
[405901875,1771413051070,-3500.0,0.00016986,2]
[405901876,1771413051080,-300.0,0.00017,2]
[405901877,1771413051089,-2836.0,0.0001704,2]
[405901878,1771413051099,-984.0,0.0001704,2]
[405901879,1771413051108,-1000.0,0.00017072,2]
[405901880,1771413051118,-1000.0,0.00017091,2]
[405901881,1771413051127,-1000.0,0.00017091,2]
[405901882,1771413051136,-1557.20080618,0.00017096,2]
[405901883,1771413051145,-2000.0,0.000171,2]
[405901884,1771413051155,-1000.0,0.00017122,2]
[405901885,1771413051165,-1000.0,0.00017126,2]
[405901886,1771413051174,-152.0,0.00017128,4]
[405901887,1771413051183,-1000.0,0.00017129,2]
[405901888,1771413051193,-1000.0,0.00017138,2]
[405901889,1771413051202,-1000.0,0.00017155,2]
[405901890,1771413051211,-1557.20080618,0.00017178,2]
[405901891,1771413051221,-242.15909246,0.00017209,2]
[405901892,1771413051230,-415.43597554,0.00017209,2]
[405901893,1771413051239,-384.63394623,0.00017209,2]
[405901894,1771413051248,-1000.0,0.00017211,2]
[405901895,1771413051257,-1557.20080618,0.00017233,2]
[405901896,1771413051267,-1000.0,0.00017255,2]
[405901897,1771413051276,-3207.6,0.0001726,2]
[405901898,1771413051285,-841.0,0.0001726,2]
[405901899,1771413051294,-1000.0,0.0001726,2]
[405901900,1771413051304,-1000.0,0.00017271,2]
[405901901,1771413051313,-350.0,0.00017294,2]
[405901902,1771413051323,-1000.0,0.00017302,2]
[405901903,1771413051332,-1557.20080618,0.00017315,2]
[405901904,1771413051342,-1000.0,0.00017318,2]
[405901905,1771413051351,-220.89,0.00017332,2]
[405901906,1771413051361,-1000.0,0.00017341,2]
[405901907,1771413051370,-575.0,0.00017342,3]
[405901908,1771413051379,-1000.0,0.00017344,2]
[405901909,1771413051388,-2836.0,0.0001736,2]
[405901910,1771413051397,-222.07,0.00017365,2]
[405901911,1771413051407,-1557.20080618,0.0001737,2]
[405901912,1771413051416,-150.0,0.00017389,2]
[405901913,1771413051426,-1000.0,0.00017405,2]
[405901914,1771413051435,-222.07,0.00017413,2]
[405901915,1771413051444,-1000.0,0.00017433,2]
[405901916,1771413051453,-1400.0,0.00017452,7]
[405901917,1771413051463,-1557.20080618,0.00017452,2]
[405901918,1771413051472,-300.0,0.00017459,2]
[405901919,1771413051481,-300.0,0.00017459,2]
[405901920,1771413051491,-47069.0,0.0001746,2]
[405901921,1771413051500,-222.07,0.00017461,2]
[405901922,1771413051510,-150.0,0.00017464,2]
[405901923,1771413051519,-150.0,0.0001747,2]
[405901924,1771413051529,-1000.0,0.00017475,2]
[405901925,1771413051538,-1000.0,0.00017482,2]
[405901926,1771413051548,-1000.0,0.00017487,2]
[405901927,1771413051558,-1000.0,0.00017487,2]
[405901928,1771413051567,-1000.0,0.00017502,2]
[405901929,1771413051578,-1557.20080618,0.00017507,2]
[405901930,1771413051587,-881.33749812,0.00017508,2]
[405901931,1771413051814,-150.0,0.00017521,2]
[405901932,1771413051826,-150.0,0.00017532,2]
[405901933,1771413051835,-3207.6,0.00017534,2]
[405901934,1771413051845,-841.0,0.00017534,2]
[405901935,1771413051855,-1000.0,0.00017534,2]
[405901936,1771413051864,-1262.81883542,0.00017534,2]
[405901937,1771413051874,-150.0,0.00017535,2]
[405901938,1771413051886,-1000.0,0.00017541,2]
[405901939,1771413051895,-1000.0,0.0001755,2]
[405901940,1771413051905,-150.0,0.00017572,2]
[405901941,1771413051914,-156.0,0.00017574,2]
[405901942,1771413051923,-156.0,0.00017574,2]
[405901943,1771413051932,-1000.0,0.00017583,2]
[405901944,1771413051942,-150.0,0.00017584,2]
[405901945,1771413051951,-1557.20080618,0.00017589,2]
[405901946,1771413051960,-175.2871213,0.00017603,4]
[405901947,1771413051969,-248.0,0.00017639,2]
[405901948,1771413051979,-9467.27196271,0.0001764,2]
[405901949,1771413051988,-1557.20080618,0.00017644,2]
[405901950,1771413051997,-175.27847489,0.00017653,2]
[405901951,1771413052006,-1000.0,0.00017655,2]
[405901952,1771413052015,-150.0,0.00017659,2]
[405901953,1771413052025,-300.0,0.0001766,2]
[405901954,1771413052034,-248.0,0.00017675,2]
[405901955,1771413052043,-160.0,0.0001768,2]
[405901956,1771413052053,-2836.0,0.0001768,2]
[405901957,1771413052061,-2828.0,0.0001768,2]
[405901958,1771413052071,-1000.0,0.00017684,2]
[405901959,1771413052080,-150.0,0.00017695,2]
[405901960,1771413052090,-248.0,0.00017711,2]
[405901961,1771413052099,-150.0,0.00017716,2]
[405901962,1771413052109,-1557.20080618,0.00017726,2]
[405901963,1771413052118,-2827.49,0.00017728,2]
[405901964,1771413052127,-2904.33208354,0.0001773,2]
[405901965,1771413052136,-1000.0,0.00017745,2]
[405901966,1771413052146,-187.78006525,0.00017753,2]
[405901967,1771413052155,-775.47832561,0.00017755,2]
[405901968,1771413052164,-251.11897888,0.00017757,2]
[405901969,1771413052174,-398.86540225,0.00017757,2]
[405901970,1771413052183,-1557.20080618,0.00017781,2]
[405901971,1771413052192,-1000.0,0.00017787,2]
[405901972,1771413052201,-248.0,0.00017808,2]
[405901973,1771413052211,-3207.6,0.00017808,2]
[405901974,1771413052220,-894.24,0.00017808,2]
[405901975,1771413052230,-500.0,0.00017808,2]
[405901976,1771413052239,-841.0,0.00017808,2]
[405901977,1771413052249,-1000.0,0.00017808,2]
[405901978,1771413052259,-800.0,0.00017808,2]
[405901979,1771413052268,-250.0,0.00017808,20]
[405901980,1771413052277,-250.0,0.00017808,20]
[405901981,1771413052286,-250.0,0.00017808,20]
[405901982,1771413052296,-250.0,0.00017808,20]
[405901983,1771413052306,-250.0,0.00017808,20]
[405901984,1771413052315,-250.0,0.00017808,20]
[405901985,1771413052326,-250.0,0.00017808,20]
[405901986,1771413052336,-175.581631,0.00017808,20]
[405901987,1771413052346,-248.0,0.00017819,2]
[405901988,1771413052355,-2000.0,0.0001782,2]
[405901989,1771413052364,-2000.0,0.0001782,2]
[405901990,1771413052374,-1000.0,0.0001783,2]
[405901991,1771413052384,-1000.0,0.00017845,2]
[405901992,1771413052394,-500.0,0.00017855,2]
[405901993,1771413052403,-200.0,0.00017855,2]
[405901994,1771413052413,-500.0,0.00017856,2]
[405901995,1771413052422,-200.0,0.00017856,2]
[405901996,1771413052432,-500.0,0.00017856,2]
[405901997,1771413052442,-500.0,0.00017856,2]
[405901998,1771413052451,-200.0,0.00017856,2]
[405901999,1771413052461,-200.0,0.00017856,2]
[405902000,1771413052471,-1000.0,0.00017858,2]
[405902001,1771413052481,-500.0,0.00017863,2]
[405902002,1771413052490,-1557.20080618,0.00017863,2]
[405902003,1771413052500,-153.0,0.00017893,2]
[405902004,1771413052510,-159.0,0.00017893,2]
[405902005,1771413052519,-161.96732508,0.00017893,2]
[405902006,1771413052529,-159.0,0.00017893,2]
[405902007,1771413052539,-159.0,0.00017893,2]
[405902008,1771413052549,-159.0,0.00017893,2]
[405902009,1771413052559,-159.0,0.00017893,2]
[405902010,1771413052568,-163.59635417,0.00017893,2]
[405902011,1771413052580,-156.0,0.00017893,2]
[405902012,1771413052589,-1508.0,0.00017893,2]
[405902013,1771413052598,-156.0,0.00017893,2]
[405902014,1771413052608,-1508.0,0.00017893,2]
[405902015,1771413052618,-152.0,0.00017893,2]
[405902016,1771413052628,-156.0,0.00017893,2]
[405902017,1771413052638,-1508.0,0.00017893,2]
[405902018,1771413052649,-156.0,0.00017893,2]
[405902019,1771413052659,-1508.0,0.00017893,2]
[405902020,1771413052669,-152.0,0.00017893,2]
[405902021,1771413052679,-153.0,0.00017893,2]
[405902022,1771413052688,-156.0,0.00017893,2]
[405902023,1771413052699,-1508.0,0.00017893,2]
[405902024,1771413052709,-152.0,0.00017893,2]
[405902025,1771413052718,-153.0,0.00017893,2]
[405902026,1771413052727,-156.0,0.00017893,2]
[405902027,1771413052737,-152.0,0.00017893,2]
[405902028,1771413052747,-1508.0,0.00017893,2]
[405902029,1771413052756,-152.0,0.00017893,2]
[405902030,1771413052765,-1508.0,0.00017893,2]
[405902031,1771413052775,-1508.0,0.00017893,2]
[405902032,1771413052785,-152.0,0.00017893,2]
[405902033,1771413052796,-1508.0,0.00017893,2]
[405902034,1771413052805,-153.0,0.00017893,2]
[405902035,1771413052816,-152.0,0.00017893,2]
[405902036,1771413052827,-156.0,0.00017893,2]
[405902037,1771413052837,-156.0,0.00017893,2]
[405902038,1771413052846,-237.34477627,0.00017893,2]
[405902039,1771413052857,-152.0,0.00017893,2]
[405902040,1771413052866,-152.0,0.00017893,2]
[405902041,1771413052876,-152.0,0.00017893,2]
[405902042,1771413052885,-152.0,0.00017893,2]
[405902043,1771413052894,-1508.0,0.00017893,2]
[405902044,1771413052904,-152.0,0.00017893,2]
[405902045,1771413052913,-153.0,0.00017893,2]
[405902046,1771413052922,-152.0,0.00017893,2]
[405902047,1771413052931,-1508.0,0.00017893,2]
[405902048,1771413052940,-152.0,0.00017893,2]
[405902049,1771413052949,-152.0,0.00017893,2]
[405902050,1771413052959,-1508.0,0.00017893,2]
[405902051,1771413052968,-152.0,0.00017893,2]
[405902052,1771413052978,-153.0,0.00017893,2]
[405902053,1771413052987,-152.0,0.00017893,2]
[405902054,1771413052996,-1508.0,0.00017893,2]
[405902055,1771413053006,-152.0,0.00017893,2]
[405902056,1771413053015,-153.0,0.00017893,2]
[405902057,1771413053025,-152.0,0.00017893,2]
[405902058,1771413053034,-152.0,0.00017893,2]
[405902059,1771413053043,-153.0,0.00017893,2]
[405902060,1771413053053,-152.0,0.00017893,2]
[405902061,1771413053062,-1508.0,0.00017893,2]
[405902062,1771413053072,-152.0,0.00017893,2]
[405902063,1771413053081,-1508.0,0.00017893,2]
[405902064,1771413053090,-153.0,0.00017893,2]
[405902065,1771413053100,-152.0,0.00017893,2]
[405902066,1771413053109,-152.0,0.00017893,2]
[405902067,1771413053118,-153.0,0.00017893,2]
[405902068,1771413053127,-152.0,0.00017893,2]
[405902069,1771413053136,-1508.0,0.00017893,2]
[405902070,1771413053145,-152.0,0.00017893,2]
[405902071,1771413053155,-153.0,0.00017893,2]
[405902072,1771413053164,-152.0,0.00017893,2]
[405902073,1771413053173,-1508.0,0.00017893,2]
[405902074,1771413053183,-152.0,0.00017893,2]
[405902075,1771413053192,-153.0,0.00017893,2]
[405902076,1771413053202,-152.0,0.00017893,2]
[405902077,1771413053211,-1508.0,0.00017893,2]
[405902078,1771413053221,-152.0,0.00017893,2]
[405902079,1771413053230,-153.0,0.00017893,2]
[405902080,1771413053240,-152.0,0.00017893,2]
[405902081,1771413053249,-1508.0,0.00017893,2]
[405902082,1771413053258,-152.0,0.00017893,2]
[405902083,1771413053268,-153.0,0.00017893,2]
[405902084,1771413053277,-152.0,0.00017893,2]
[405902085,1771413053286,-1508.0,0.00017893,2]
[405902086,1771413053295,-152.0,0.00017893,2]
[405902087,1771413053306,-152.0,0.00017893,2]
[405902088,1771413053315,-152.0,0.00017893,2]
[405902089,1771413053325,-152.0,0.00017893,2]
[405902090,1771413053335,-152.0,0.00017893,2]
[405902091,1771413053344,-206.13850543,0.00017893,2]
[405902092,1771413053353,-152.0,0.00017893,2]
[405902093,1771413053363,-300.0,0.00017899,2]
[405902094,1771413053373,-25000.0,0.000179,3]
[405902095,1771413053382,-173.62051493,0.000179,3]
[405902096,1771413053392,-5008.1800114,0.000179,3]
[405902097,1771413053401,-3534.30165173,0.000179,2]
[405902098,1771413053410,-25635.78322112,0.000179,2]
[405902099,1771413053420,-150.0,0.00017912,2]
[405902100,1771413053429,-150.0,0.00017912,2]
[405902101,1771413053438,-150.0,0.00017912,2]
[405902102,1771413053447,-150.0,0.00017912,2]
[405902103,1771413053457,-150.0,0.00017912,2]
[405902104,1771413053466,-150.0,0.00017912,2]
[405902105,1771413053476,-617.0,0.00017912,2]
[405902106,1771413053485,-1164.0,0.00017912,2]
[405902107,1771413053495,-1338.0,0.00017912,2]
[405902108,1771413053504,-1275.0,0.00017912,2]
[405902109,1771413053513,-150.0,0.00017912,2]
[405902110,1771413053523,-1209.0,0.00017912,2]
[405902111,1771413053532,-5973.0,0.00017912,2]
[405902112,1771413053542,-2452.0,0.00017912,2]
[405902113,1771413053551,-500.0,0.00017918,2]
[405902114,1771413053561,-209.40437684,0.00017938,3]
[405902115,1771413053570,-217.15233878,0.00017938,3]
[405902116,1771413053580,-225.18697532,0.00017938,3]
[405902117,1771413053589,-254.58376264,0.00017938,3]
[405902118,1771413053599,-578.20924308,0.00017938,3]
[405902119,1771413053609,-599.60298507,0.00017938,3]
[405902120,1771413053618,-621.78829552,0.00017938,3]
[405902121,1771413053628,-644.79446246,0.00017938,3]
[405902122,1771413053638,-668.65185757,0.00017938,3]
[405902123,1771413053647,-693.3919763,0.00017938,3]
[405902124,1771413053656,-719.04747942,0.00017938,3]
[405902125,1771413053665,-745.65223616,0.00017938,3]
[405902126,1771413053674,-167.44299308,0.00017938,3]
[405902127,1771413053684,-150.0,0.00017942,2]
[405902128,1771413053693,-4562.0226783,0.00017948,2]
[405902129,1771413053702,-7141.767051,0.00017948,2]
[405902130,1771413053711,-10639.7831029,0.00017948,2]
[405902131,1771413053722,-209.6868903,0.00017948,2]
[405902132,1771413053732,-62809.9597375,0.00017948,2]
[405902133,1771413053742,-939.7514441,0.00017948,2]
[405902134,1771413053751,-150.0,0.00017953,2]
[405902135,1771413053761,-248.0,0.0001796,2]
[405902136,1771413053771,-1000.0,0.0001796,2]
[405902137,1771413053781,-1000.0,0.0001797,2]
[405902138,1771413053791,-500.0,0.0001797,2]
[405902139,1771413053801,-1000.0,0.0001797,2]
[405902140,1771413053814,-500.0,0.0001797,2]
[405902141,1771413053827,-1000.0,0.0001797,2]
[405902142,1771413053837,-500.0,0.0001797,2]
[405902143,1771413053846,-1000.0,0.0001797,2]
[405902144,1771413053857,-500.0,0.0001797,2]
[405902145,1771413053866,-1000.0,0.0001797,2]
[405902146,1771413053876,-500.0,0.0001797,2]
[405902147,1771413053886,-1000.0,0.0001797,2]
[405902148,1771413053895,-500.0,0.0001797,2]
[405902149,1771413053905,-1000.0,0.0001797,2]
[405902150,1771413053914,-900.0,0.0001797,2]
[405902151,1771413053923,-1602.42010233,0.0001797,2]
[405902152,1771413053933,-500.0,0.00017972,2]
[405902153,1771413053943,-181.0,0.00017973,2]
[405902154,1771413053952,-324.11452571,0.00017973,2]
[405902155,1771413053961,-183.16381762,0.00017977,2]
[405902156,1771413053971,-1000.0,0.00017979,2]
[405902157,1771413053980,-150.0,0.00017984,2]
[405902158,1771413053989,-575.0,0.00017988,3]
[405902159,1771413053999,-248.0,0.00017999,2]
[405902160,1771413054009,-150.0,0.00017999,2]
[405902161,1771413054018,-300.0,0.00017999,2]
[405902162,1771413054027,-300.0,0.00017999,2]
[405902163,1771413054036,-666.0,0.00017999,2]
[405902164,1771413054048,-300.0,0.00017999,2]
[405902165,1771413054060,-300.0,0.00017999,2]
[405902166,1771413054070,-150.0,0.00017999,2]
[405902167,1771413054080,-150.0,0.00017999,2]
[405902168,1771413054089,-176.3278099,0.00017999,2]
[405902169,1771413054099,-737699.05934956,0.00018,2]
[405902170,1771413055175,-152.0,0.00017893,2]
[405902171,1771413055184,-1508.0,0.00017893,2]
[405902172,1771413055194,-6863.25868179,0.00018,2]
[405902173,1771413055205,-9567.63200002,0.00018,2]
[405902174,1771413055217,-5718.26109132,0.00018,2]
[405902175,1771413055228,-786.84822687,0.00018,2]
[405902176,1771413055261,-412.0,0.00011912,2]
[405902177,1771413055273,-2237747.39215851,0.00018,2]
[405902178,1771413055282,-1202670.89325852,0.00018,2]
[405902179,1771413055292,-199.63,0.00018,8]
[405902180,1771413055301,-151.0,0.00018,2]
[405902181,1771413055310,-1877836.95885122,0.00018,2]
[405902182,1771413055319,-1761167.076563,0.00018,2]
[405902183,1771413055329,-109735.58932205,0.00018,2]
[405902184,1771413055338,-1291841.64174774,0.00018,2]
[405902185,1771413055349,-4009.31510378,0.00018,2]
[405902186,1771413055616,-210.82916586,8.631e-05,2]
[405902187,1771413055626,-500.0,9.585e-05,2]
[405902188,1771413055636,-500.0,9.859e-05,2]
[405902189,1771413055645,-412.0,0.00014912,2]
[405902190,1771413055654,-200.0,0.00016792,2]
[405902191,1771413055664,-412.0,0.00017912,2]
[405902192,1771413055673,-2662.79271552,0.00018,2]
[405902193,1771413055701,-394.45999999,0.00010133,2]
[405902194,1771413055710,-602.58000001,0.00018,2]
[405902195,1771413055745,-316.95137109,0.00018,2]
[405902196,1771413055754,-143546.9760265,0.00018,2]
[405902197,1771413055764,-200.0,0.00018,2]
[405902198,1771413055772,-2514520.2553603,0.00018,2]
[405902199,1771413055782,-272446.02952488,0.00018,2]
[405902200,1771413055791,-150.0,0.00018,2]
[405902201,1771413055800,-4526.65876849,0.00018,2]
[405902202,1771413055810,-150.0,0.00018,2]
[405902203,1771413055822,-18124.01835008,0.00018,2]
[405902204,1771413055832,-150.0,0.00018,2]
[405902205,1771413055841,-1285343.89572286,0.00018,2]
[405902206,1771413055851,-150.0,0.00018,2]
[405902207,1771413055860,-5156.01461649,0.00018,2]
[405902208,1771413055869,-860.43,0.00018,7]
[405902209,1771413055878,-10000.0,0.00018,2]
[405902210,1771413055890,-19578238.56620496,0.00018,2]
[405902211,1771413055899,-537077.29668568,0.00018,2]
[405902212,1771413055907,-401.0,0.00018,2]
[405902213,1771413055917,-401.0,0.00018,2]
[405902214,1771413055926,-401.0,0.00018,2]
[405902215,1771413055935,-401.0,0.00018,2]
[405902216,1771413055944,-401.0,0.00018,2]
[405902217,1771413055953,-401.0,0.00018,2]
[405902218,1771413055962,-401.0,0.00018,2]
[405902219,1771413055971,-401.0,0.00018,2]
[405902220,1771413055980,-401.0,0.00018,2]
[405902221,1771413055989,-401.0,0.00018,2]
[405902222,1771413055998,-401.0,0.00018,2]
[405902223,1771413056008,-401.0,0.00018,2]
[405902224,1771413056018,-401.0,0.00018,2]
[405902225,1771413056027,-401.0,0.00018,2]
[405902226,1771413056036,-401.0,0.00018,2]
[405902227,1771413056046,-401.0,0.00018,2]
[405902228,1771413056055,-401.0,0.00018,2]
[405902229,1771413056064,-401.0,0.00018,2]
[405902230,1771413056075,-401.0,0.00018,2]
[405902231,1771413056085,-401.0,0.00018,2]
[405902232,1771413056095,-401.0,0.00018,2]
[405902233,1771413056106,-401.0,0.00018,2]
[405902234,1771413056116,-401.0,0.00018,2]
[405902235,1771413056127,-401.0,0.00018,2]
[405902236,1771413056137,-401.0,0.00018,2]
[405902237,1771413056147,-401.0,0.00018,2]
[405902238,1771413056156,-401.0,0.00018,2]
[405902239,1771413056167,-401.0,0.00018,2]
[405902240,1771413056177,-401.0,0.00018,2]
[405902241,1771413056188,-401.0,0.00018,2]
[405902242,1771413056199,-401.0,0.00018,2]
[405902243,1771413056209,-401.0,0.00018,2]
[405902244,1771413056218,-401.0,0.00018,2]
[405902245,1771413056227,-401.0,0.00018,2]
[405902246,1771413056237,-401.0,0.00018,2]
[405902247,1771413056246,-401.0,0.00018,2]
[405902248,1771413056256,-401.0,0.00018,2]
[405902249,1771413056266,-401.0,0.00018,2]
[405902250,1771413056276,-434.06225705,0.00018,2]
[405902251,1771413056286,-386.0,0.00018,2]
[405902252,1771413056295,-20501.64457345,0.00018,4]
[405902253,1771413056306,-53677.28309674,0.00018,4]
[405902254,1771413056318,-386.0,0.00018,2]
[405902255,1771413056328,-393.0,0.00018,2]
[405902256,1771413056337,-386.0,0.00018,2]
[405902257,1771413056347,-391.0,0.00018,2]
[405902258,1771413056357,-298.0,0.00018,2]
[405902259,1771413056367,-153.0811231,0.00018,2]
[405902260,1771413056378,-162.0,0.00018,2]
[405902261,1771413056387,-393.0,0.00018,2]
[405902262,1771413056396,-386.0,0.00018,2]
[405902263,1771413056406,-381.0,0.00018,2]
[405902264,1771413056416,-381.0,0.00018,2]
[405902265,1771413056425,-381.0,0.00018,2]
[405902266,1771413056434,-381.0,0.00018,2]
[405902267,1771413056443,-381.0,0.00018,2]
[405902268,1771413056452,-381.0,0.00018,2]
[405902269,1771413056462,-381.0,0.00018,2]
[405902270,1771413056471,-381.0,0.00018,2]
[405902271,1771413056480,-460.0,0.00018,2]
[405902272,1771413056489,-393.0,0.00018,2]
[405902273,1771413056499,-310.0,0.00018,2]
[405902274,1771413056509,-500.0,0.00018,2]
[405902275,1771413056518,-500.0,0.00018,2]
[405902276,1771413056527,-500.0,0.00018,2]
[405902277,1771413056536,-500.0,0.00018,2]
[405902278,1771413056546,-500.0,0.00018,2]
[405902279,1771413056555,-500.0,0.00018,2]
[405902280,1771413056564,-500.0,0.00018,2]
[405902281,1771413056574,-311.84250872,0.00018,2]
[405902282,1771413056583,-150.0,0.00018,2]
[405902283,1771413056592,-1508.0,0.00018,2]
[405902284,1771413056601,-1508.0,0.00018,2]
[405902285,1771413056611,-1508.0,0.00018,2]
[405902286,1771413056621,-1508.0,0.00018,2]
[405902287,1771413056631,-1508.0,0.00018,2]
[405902288,1771413056640,-1508.0,0.00018,2]
[405902289,1771413056650,-1508.0,0.00018,2]
[405902290,1771413056659,-1508.0,0.00018,2]
[405902291,1771413056668,-1313.51799035,0.00018,2]
[405902292,1771413056678,-152.0,0.00018,2]
[405902293,1771413056687,-152.0,0.00018,2]
[405902294,1771413056697,-152.0,0.00018,2]
[405902295,1771413056708,-152.0,0.00018,2]
[405902296,1771413056719,-152.0,0.00018,2]
[405902297,1771413056729,-152.0,0.00018,2]
[405902298,1771413056739,-152.0,0.00018,2]
[405902299,1771413056750,-152.0,0.00018,2]
[405902300,1771413056760,-152.0,0.00018,2]
[405902301,1771413056770,-152.0,0.00018,2]
[405902302,1771413056780,-152.0,0.00018,2]
[405902303,1771413056792,-290.49021285,0.00018,2]
[405902304,1771413056803,-152.0,0.00018,2]
[405902305,1771413056814,-152.0,0.00018,2]
[405902306,1771413057034,-152.0,0.00018,2]
[405902307,1771413057054,-152.0,0.00018,2]
[405902308,1771413057063,-152.0,0.00018,2]
[405902309,1771413057071,-152.0,0.00018,2]
[405902310,1771413057081,-152.0,0.00018,2]
[405902311,1771413057090,-217.07160284,0.00018,2]
[405902312,1771413057099,-152.0,0.00018,2]
[405902313,1771413057108,-1508.0,0.00018,2]
[405902314,1771413057117,-152.0,0.00018,2]
[405902315,1771413057126,-153.0,0.00018,2]
[405902316,1771413057134,-1508.0,0.00018,2]
[405902317,1771413057143,-152.0,0.00018,2]
[405902318,1771413057153,-153.0,0.00018,2]
[405902319,1771413057162,-1508.0,0.00018,2]
[405902320,1771413057172,-152.0,0.00018,2]
[405902321,1771413057181,-153.0,0.00018,2]
[405902322,1771413057190,-1508.0,0.00018,2]
[405902323,1771413057199,-152.0,0.00018,2]
[405902324,1771413057208,-153.0,0.00018,2]
[405902325,1771413057217,-1508.0,0.00018,2]
[405902326,1771413057226,-152.0,0.00018,2]
[405902327,1771413057235,-153.0,0.00018,2]
[405902328,1771413057244,-1508.0,0.00018,2]
[405902329,1771413057253,-1508.0,0.00018,2]
[405902330,1771413057263,-153.0,0.00018,2]
[405902331,1771413057272,-1508.0,0.00018,2]
[405902332,1771413057281,-1508.0,0.00018,2]
[405902333,1771413057290,-1508.0,0.00018,2]
[405902334,1771413057299,-1508.0,0.00018,2]
[405902335,1771413057308,-152.0,0.00018,2]
[405902336,1771413057317,-1508.0,0.00018,2]
[405902337,1771413057327,-1495.0,0.00018,2]
[405902338,1771413057336,-152.0,0.00018,2]
[405902339,1771413057346,-152.0,0.00018,2]
[405902340,1771413057355,-152.0,0.00018,2]
[405902341,1771413057365,-153.0,0.00018,2]
[405902342,1771413057374,-152.0,0.00018,2]
[405902343,1771413057383,-153.0,0.00018,2]
[405902344,1771413057392,-152.0,0.00018,2]
[405902345,1771413057401,-153.0,0.00018,2]
[405902346,1771413057410,-378.0,0.00018,2]
[405902347,1771413057420,-200.0,0.00018,2]
[405902348,1771413057429,-150.0,0.00018,2]
[405902349,1771413057438,-153.0,0.00018,2]
[405902350,1771413057447,-152.0,0.00018,2]
[405902351,1771413057456,-153.0,0.00018,2]
[405902352,1771413057465,-152.0,0.00018,2]
[405902353,1771413057475,-153.0,0.00018,2]
[405902354,1771413057484,-153.0,0.00018,2]
[405902355,1771413057493,-155.3069683,0.00018,2]
[405902356,1771413057502,-153.0,0.00018,2]
[405902357,1771413057512,-152.0,0.00018,2]
[405902358,1771413057521,-152.0,0.00018,2]
[405902359,1771413057529,-160.9957844,0.00018,2]
[405902360,1771413057539,-152.0,0.00018,2]
[405902361,1771413057548,-152.0,0.00018,2]
[405902362,1771413057558,-152.0,0.00018,2]
[405902363,1771413057568,-152.0,0.00018,2]
[405902364,1771413057578,-159.0,0.00018,2]
[405902365,1771413057587,-152.0,0.00018,2]
[405902366,1771413057596,-152.0,0.00018,2]
[405902367,1771413057606,-152.0,0.00018,2]
[405902368,1771413057615,-152.0,0.00018,2]
[405902369,1771413057624,-152.0,0.00018,2]
[405902370,1771413057634,-152.0,0.00018,2]
[405902371,1771413057642,-152.0,0.00018,2]
[405902372,1771413057651,-152.0,0.00018,2]
[405902373,1771413057661,-152.0,0.00018,2]
[405902374,1771413057670,-152.0,0.00018,2]